Cogmind - Beta 15 @@@ ROGUE MODE // 2025.05.16 @ 16:51:40 Player: stanislaf Result: Destroyed by D-53 Grenadier with Mini Grenade Launcher Performance ------------- Evolutions (0) 0 Regions Visited (2) 400 Robots Destroyed (14) 70 Value Destroyed (272) 272 Prototype IDs (1) 20 Alien Tech Used (0) 0 Bonus (0) 0 TOTAL SCORE: 762 Bonus ------- None Cogmind --------- Core Integrity 0/250 Matter 199/300 Energy 44/100 System Corruption 0% Temperature Cool (20) Movement Core (250) Ox4 Location -10/Mines Parts ------- > --- POWER (1) -------- (None) > --- PROPULSION (2) --- (None) > --- UTILITY (2) ------ Small Storage Unit > --- WEAPON (2) ------- Advanced Beam Cannon Advanced Beam Cannon > --- INVENTORY (8) ---- Small Matter Pod (50) Light Assault Rifle Shotgun Shotgun Mining Laser Peak State ------------ > --- POWER ------------ Ion Engine > --- PROPULSION ------- Aluminum Leg Aluminum Leg > --- UTILITY ---------- Small Storage Unit Seismic Detector > --- WEAPON ----------- Advanced Beam Cannon Advanced Beam Cannon > --- INVENTORY -------- Light Ion Engine Small Matter Pod Light Assault Rifle Shotgun Shotgun Shotgun Shotgun Grenade Launcher [Rating: 12] Favorites ----------- Power Ion Engine Engine Ion Engine Propulsion Aluminum Leg Treads Light Treads Leg Aluminum Leg Wheel Wheel Utility Small Storage Unit Device Seismic Detector Storage Small Storage Unit Weapon Light Assault Rifle Energy Gun EM Pulse Gun Energy Cannon Advanced Beam Cannon Ballistic Gun Light Assault Rifle Launcher Grenade Launcher Build | -11 -10 -10 ------- Run | Yrd Mat Min Slots Evolved . | . . . Power . | . . . Propulsion . | . . . Utility . | . . . Weapon . | . . . Parts Attached 22 | 11 9 2 Power 3 | 1 2 . Engine 3 | 1 2 . Core . | . . . Reactor . | . . . Propulsion 6 | 4 2 . Treads 1 | 1 . . Leg 4 | 2 2 . Wheel 1 | 1 . . Hover . | . . . Flight . | . . . Utility 4 | 3 1 . Device 2 | 1 1 . Storage 2 | 2 . . Processor . | . . . Hackware . | . . . Protection . | . . . Artifact . | . . . Weapon 9 | 3 4 2 Energy Gun 1 | 1 . . Energy Cannon 2 | . 2 . Ballistic Gun 5 | 2 2 1 Ballistic Cannon . | . . . Launcher 1 | . . 1 Special Weapon . | . . . Impact Weapon . | . . . Slashing Weapon . | . . . Piercing Weapon . | . . . Special Melee Weapon . | . . . Unidentified Prototypes 1 | . 1 . Parts Lost 7 | . . 7 Power 2 | . . 2 Propulsion 2 | . . 2 Utility 1 | . . 1 Weapon 2 | . . 2 Highest Loss Streak 7 | . . 7 To Critical Strikes . | . . . Average Backups 6 | 6 7 7 Power 1 | 1 . 1 Propulsion 3 | 3 . . Utility . | . 1 1 Weapon 1 | . 5 5 Tool/Special . | . . . Unused Backups 10 | 1 7 2 Power 1 | . 1 . Propulsion 5 | 1 4 . Utility 1 | . 1 . Weapon 3 | . 1 2 Tool/Special . | . . . Average Slot Usage (%) 97 | . 99 89 Engine 13 | . 13 14 Leg 27 | . 28 22 Device 13 | . 14 9 Storage 14 | . 14 14 Energy Cannon 15 | . 14 19 Ballistic Gun 11 | . 13 5 Peak Build Rating 12 | 7 12 12 Average Rating 7 | 6 10 10 On Entrance 6 | . 7 12 Naked Turns . | . . . Heaviest Build 19 | 14 19 19 Greatest Support 20 | 20 20 20 Greatest Overweight (x) . | . . . Average Overweight (x) . | . . . Largest Inventory Capacity 8 | 8 8 8 Average Capacity 7 | 7 8 8 Most Carried 8 | 8 8 8 Average Carried 6 | 6 7 7 Final Capacity 8 | 8 8 8 Final Carried 8 | 7 8 5 Class Distribution -------------------- 93% | Mutant 6% | Scavenger-Mutant Dominant Class ---------------- Mutant | -10/Materials Scavenger-Mutant | -10/Mines Resources | -11 -10 -10 ----------- Run | Yrd Mat Min Matter Collected 584 | 316 248 20 Remotely . | . . . Salvage Created 427 | 49 300 78 Parts 27 | 6 20 1 Haulers Intercepted 1 | . 1 . Recyclers Shooed . | . . . Parts Field Recycled . | . . . Retrieved Matter . | . . . Parts Self-Destructed . | . . . Prevented . | . . . Kills | -11 -10 -10 ------- Run | Yrd Mat Min Combat Hostiles Destroyed 12 | . 5 7 Guns 6 | . 2 4 Cannons 6 | . 3 3 Classes Destroyed 7 | 2 3 2 Worker 2 | 1 1 . Tunneler 1 | 1 . . Hauler 1 | . 1 . Watcher 3 | . 3 . Swarmer 2 | . . 2 Grunt 5 | . 5 . Assembled 5 | . . 5 Best Kill Streak 4 | 2 4 4 Combat Bots Only 4 | . 3 4 Max Kills in Single Turn 1 | 1 1 1 Gunslinging . | . . . Exploded . | . . . Melee . | . . . Uniques/NPCs Destroyed . | . . . Combat | -11 -10 -10 -------- Run | Yrd Mat Min Hostile Shots Fired 84 | . 25 59 Missed 22 | . 6 16 Hits 62 | . 19 43 Melee 9 | . . 9 Projectile 53 | . 19 34 AOE 9 | . . 9 Critical Strikes 2 | . . 2 Damage Taken 1262 | . 293 969 Core 268 | . 49 219 Absorbed by Shields . | . . . Core Remaining (%) 100 | 100 . . Volleys Fired 45 | 6 23 16 Largest 2 | 2 2 2 Hottest 136 | 60 136 136 Shots Fired 87 | 12 46 29 Gun 46 | 12 20 14 Cannon 39 | . 26 13 Launcher 2 | . . 2 Special . | . . . Kinetic 40 | 6 20 14 Thermal 39 | . 26 13 Explosive 2 | . . 2 Electromagnetic 6 | 6 . . Robot Hit Streak 7 | 7 5 6 Robot Miss Streak 4 | 1 4 3 Penetration Max . | . . . Secondary Targets 2 | . 1 1 Max Gunslinging Chain 1 | . 1 1 Shots Hit Robots 46 | 9 21 16 Core Hits 34 | 3 14 17 Critical Kills . | . . . Critical Parts Destroyed . | . . . Critical Strikes . | . . . Melee Attacks . | . . . Impact . | . . . Slashing . | . . . Piercing . | . . . Sneak Attacks . | . . . Combat Hostiles . | . . . Follow-up Attacks . | . . . Damage Inflicted 1042 | 103 443 496 Guns 330 | 103 107 120 Cannons 410 | . 226 184 Explosions 302 | . 110 192 Melee . | . . . Ramming . | . . . Kinetic 249 | 22 107 120 Thermal 520 | . 336 184 Explosive 192 | . . 192 Electromagnetic 81 | 81 . . Impact . | . . . Slashing . | . . . Piercing . | . . . Highest Corruption . | . . . Average Corruption . | . . . Corruption Purged . | . . . Corruption Blocked . | . . . Overload Shots . | . . . Overflow Damage 81 | . 70 11 Projectiles 2 | . . 2 Explosions 79 | . 70 9 Melee . | . . . Knockbacks . | . . . Impact . | . . . Kinetic . | . . . Secondary . | . . . Self-Inflicted Damage 84 | . 57 27 Shots 2 | . 1 1 Rammed . | . . . Targets Rammed . | . . . Kicked . | . . . Crushed . | . . . Highest Temperature 225 | 40 225 180 Average Temperature 51 | 20 54 56 Received Heat Transfer 332 | . 120 212 Siege Activations . | . . . Martial Activations . | . . . Shielding Activations . | . . . Robots Disrupted . | . . . Combat Hostiles . | . . . Robots Corrupted . | . . . Combat Hostiles . | . . . Parts Fried . | . . . Impact Corruptions . | . . . Robots Melted . | . . . Combat Hostiles . | . . . Parts Melted 1 | . . 1 Heat Transferred 790 | . 457 333 Parts Sabotaged . | . . . Parts Stolen . | . . . Parts Stripped . | . . . Power Chain Reactions . | . . . Alert | -11 -10 -10 ------- Run | Yrd Mat Min Maximum Alert Level . | . . . Low Security (%) 100 | 100 100 100 Level 1 . | . . . Level 2 . | . . . Level 3 . | . . . Level 4 . | . . . Level 5 . | . . . High Security . | . . . Max Security . | . . . Peak Influence 150 | 5 150 83 Initial 33 | . . 33 Average 11 | . 60 56 Influence Increases 284 | 10 211 63 Destroy 0b10 Robot/C 140 | . 100 40 Destroy 0b10 Robot/NC 35 | 10 25 . Destroy Leader 48 | . 38 10 Successful Hack 3 | . 3 . Disable Machine 15 | . 15 . Destroy Structure 43 | . 30 13 Influence Decreases 284 | 10 124 150 Entered New Map 54 | . . 54 Time Decay 174 | 10 124 40 Lost Part 56 | . . 56 Squads Dispatched 2 | . 2 . Investigation 1 | . 1 . Extermination . | . . . Reinforcement 1 | . 1 . Assault . | . . . Garrison . | . . . Intercept . | . . . Searches Triggered . | . . . Construction Impeded . | . . . Haulers Reinforced . | . . . Active Scanning Responses . | . . . Cargo Convoy Interrupts . | . . . Stealth | -11 -10 -10 --------- Run | Yrd Mat Min Distress Signals 1 | . 1 . Communications Jammed . | . . . Distress Signals . | . . . Times Spotted 36 | . 11 25 Peak Tracking Total 17 | . 3 17 Tactical Retreats 1 | . . 1 Traps | -11 -10 -10 ------- Run | Yrd Mat Min Traps Triggered 2 | . 2 . Indirectly . | . . . Trap Hack Attempts . | . . . Triggered . | . . . Disarmed . | . . . Reprogrammed . | . . . Reused . | . . . Traps Extracted . | . . . Installed . | . . . Triggered . | . . . Machines | -11 -10 -10 ---------- Run | Yrd Mat Min Machines Disabled 1 | . 1 . Max in Single Turn 1 | . 1 . Machines Repaired . | . . . Machines Dismantled . | . . . Machines Sabotaged . | . . . Overloaded Fab Kills . | . . . Hacking | -11 -10 -10 --------- Run | Yrd Mat Min Machines Accessed 2 | . 2 . Terminals 1 | . 1 . Fabricators . | . . . Repair Stations . | . . . Recycling Units 1 | . 1 . Scanalyzers . | . . . Garrison Access . | . . . Total Hacks 4 | . 4 . Successful 4 | . 4 . Failed . | . . . Catastrophic . | . . . Database Lockouts . | . . . Manual . | . . . Terminals 3 | . 3 . Fabricators . | . . . Repair Stations . | . . . Recycling Units 1 | . 1 . Scanalyzers . | . . . Garrison Access . | . . . Terminal Hacks 3 | . 3 . Record 2 | . 2 . Maintenance Status 1 | . 1 . Fabricator Hacks . | . . . Repair Station Hacks . | . . . Recycling Unit Hacks 1 | . 1 . Process 1 | . 1 . Scanalyzer . | . . . Garrison Access Hacks . | . . . Unauthorized Hacks . | . . . Terminals . | . . . Fabricators . | . . . Repair Stations . | . . . Recycling Units . | . . . Scanalyzers . | . . . Garrison Access . | . . . Data Cores Recovered . | . . . Used . | . . . Hacking Detections 1 | . 1 . Full Trace Events . | . . . Feedback Events . | . . . Feedback Blocked . | . . . Robot Schematics Acquired . | . . . Robots Built . | . . . Authchips . | . . . Time . | . . . Total Robot Build Rating . | . . . Part Schematics Acquired . | . . . Parts Built . | . . . Authchips . | . . . Time . | . . . Total Part Build Rating . | . . . Parts Repaired . | . . . Time . | . . . Parts Recycled . | . . . Recycled Matter 34 | . 34 . Retrieved Matter . | . . . Retrieved Components . | . . . Parts Scanalyzed . | . . . Part Schematics Acquired . | . . . Parts Damaged . | . . . Bothacking | -11 -10 -10 ------------ Run | Yrd Mat Min Used RIF Installer . | . . . Robots Hacked . | . . . Non-combat . | . . . Combat . | . . . Robot Hacks Applied . | . . . Relay Couplers Released . | . . . Fabnet Peak Effective % . | . . . Robots Rewired . | . . . Allies Hacked . | . . . Hacks Repelled . | . . . Allies | -11 -10 -10 -------- Run | Yrd Mat Min Total Allies . | . . . Largest Group . | . . . Highest-Rated Group . | . . . Highest-Rated Ally . | . . . Total Orders . | . . . Ally Attacks . | . . . Total Damage . | . . . Kills . | . . . Allies Corrupted . | . . . Allies Melted . | . . . Intel | -11 -10 -10 ------- Run | Yrd Mat Min Active Infowar (turns) 2333 | 2079 254 . Seismic 2333 | 2079 254 . Robot Analysis Total . | . . . Derelict Logs Recovered . | . . . Drone Launches . | . . . Drone Recoveries . | . . . Exploration | -11 -10 -10 ------------- Run | Yrd Mat Min Turns Passed 2831 | 2291 456 84 Spaces Moved 953 | 641 286 26 Core 1 | 1 . . Treads 27 | 27 . . Legs 922 | 610 286 26 Wheels 3 | 3 . . Hover . | . . . Flight . | . . . Fastest Speed 50 | 50 120 120 Average Speed 120 | 121 120 120 Slowest Speed 160 | 160 120 120 Overloaded Moves . | . . . Propulsion Burnouts . | . . . Robots Hopped . | . . . Potential Cave-ins . | . . . Cave-ins Triggered . | . . . Exploration Rate (%) 33 | 52 40 9 Regions Visited 2 Branch Regions 1 Pre-discovered Areas . | . . . Known Exits Taken . | . . . Unknown Exits Taken 2 | 1 1 . Scrap Searched . | . . . Spaces Dug . | . . . Terrain Destroyed 55 | . 42 13 Melee . | . . . Projectile . | . . . AOE 55 | . 42 13 Terrain Rammed . | . . . Walls Destroyed . | . . . Machines Disabled . | . . . Actions | -11 -10 -10 --------- Run | Yrd Mat Min Total 2548 | 2142 357 49 Wait 1464 | 1464 . . Move 951 | 640 285 26 Hop . | . . . Pick Up 26 | 12 14 . Fast Attach 10 | 7 3 . Attach 8 | 5 . 3 Detach 3 | 2 1 . Swap 17 | 1 12 4 Drop 24 | 5 19 . Fire 45 | 6 23 16 Melee . | . . . Ram . | . . . Kick . | . . . Crush . | . . . Escape Stasis . | . . . Rewire . | . . . Trap . | . . . Miscellaneous . | . . . Route ------- -11/Scrapyard -10/Materials (discovered 2 exits: [*Mat] / [*Min]) -10/Mines History --------- Turn | Location | Event 11 | -11/Scrapyard | Discovered new exit (range 16) 2292 | -11/Scrapyard | Entered Materials 2293 | -10/Materials | Build established: Mutant 2581 | -10/Materials | Discovered new exit (range 15) 2663 | -10/Materials | Discovered new exit (range 9) 2748 | -10/Materials | Entered Mines 2749 | -10/Mines | Assembled infested the area 2824 | -10/Mines | Core integrity fell below 50% 2831 | -10/Mines | Core integrity fell below 20% 2832 | -10/Mines | Destroyed by D-53 Grenadier with Mini Grenade Launcher Last Messages --------------- 02804_ Heat Sink destroyed. 02805_ as-34877 destroyed. 02806_ Knocked back. 02808_ as-43507 destroyed. 02811_ as-29743 destroyed. 02814_ as-93988 destroyed. 02817_ Critical hit (Burn: +80). 02820_ as-51425 destroyed. 02824_ as-75450 destroyed. 02824_ Switching to secondary target: as-22579. 02824_ as-60953 destroyed. 02824_ as-37548 destroyed. 02824_ Plasma Injector explodes. 02824_ as-22579 destroyed. 02824_ Lgt. Ion Engine destroyed. 02826_ Aluminum Leg destroyed. 02827_ The unstable cave ceiling collapses. 02828_ Shotgun destroyed. 02830_ The unstable cave ceiling collapses. 02830_ Ion Engine destroyed. Map ----- +----------------------------------------------------+ | ??????????????????????????????????????????? | | ??????????????????????????????????????????? | | ??????????????????????????????????????????? | | ??????????????????????????????????????????? | | ??????????????????????????????????????????? | | ??????????????????????????????????????????? | | ??????????????????????????????????????????? | | ??????????????????????????????????????????? | | ??????????????????????????????????????????? | | ??????????????????????????????????????????? | | ??????????????????????????????????????????? | | ?????????????????????##???????????????????? | | ????????????????????# # ##????????????????? | | ????????## ???##?## #??????????????? | | ????????# < #### # # # ????????????? | | ????????# # # ????????????? | | ????????# dda #??????? | | ????????# ?????????????? | | ????????## ??????????????? | | ?????????### ???????????????? | | ??????????# ##???????????????? | | ??????????### #???????????????? | | ???????????# %% #???????????????? | | ????????#### %#???????????????? | | ????????# #???????????????? | | ????????????# @ #???????????????? | | ????????????## ####???????????????? | | ?????????????# #??????????????????? | | ?????????????# ##??????????????????? | | ?????????????## # ####???????????????????? | | ??????????????# ## ??????????????????????? | | ??????????????# ?? ??????????????????????? | | ??????????????# ??? ??????????????????????? | | ??????????????# ??? ??????????????????????? | | ??????????????##???#??????????????????????? | | ??????????????????????????????????????????? | | ??????????????????????????????????????????? | | ??????????????????????????????????????????? | | ??????????????????????????????????????????? | | ??????????????????????????????????????????? | | ??????????????????????????????????????????? | | ??????????????????????????????????????????? | | ??????????????????????????????????????????? | | ??????????????????????????????????????????? | | ??????????????????????????????????????????? | | ??????????????????????????????????????????? | | ??????????????????????????????????????????? | | | | | | | +----------------------------------------------------+ Best States ------------- Heat Dissipation 35 Energy Generation 10 Energy Capacity 250 Matter Stores 300 Matter Capacity 300 Sight Range 16 Terrain Scan Density 10 Evasion (%) 55 Recoil Reduction 1 Item Schematics ----------------- None Robot Schematics ------------------ None Fabricated ------------ Nothing Repaired ---------- Nothing Alien Tech Used ----------------- None Achievements -------------- Loot Pinata Risk Taker Uninvited Guest Challenges ------------ None Game ------ Seed PlatingTechDevice Manual? 0 Play Time 01:05:37 Cumulative 1.5 hours Start 2025.05.16 @ 11:02:31 End 2025.05.16 @ 16:51:40 Sessions 5 Manual Loads 0 Difficulty Rogue Special Mode None Game No. 2 Rogue 2 Adventurer 0 Explorer 0 Win Type - Total 0 Types 0/0/0/0/0/0/0/0/0/0 Lore% 0 Gallery% 1 Achievement% 1 Wizard Run 0 Options --------- Layout 1 ASCII 0 Keyboard 0 Movement Arrows Keybinds 0 Fullscreen 1 Font 24/Terminus Map View 50x35 Zoom Use 29% Tactical HUD 1 Map Filters NONE Filters NONE Steam 1 RUN: a82a80da-9f15-4bc7-bb82-f4b3df1c106b